bitfinex/quotes_ETHUSD_20240825
["timestamp","ask_amount","ask_price","bid_price","bid_amount"]
[1724579767528,1.27195844,2760.4,2760.1,2.3735]
[1724579767829,4.89428844,2760.7,2760.1,6.06891397]
[1724579767979,4.89428844,2760.7,2760.2,2.3735]
[1724579768183,4.89428844,2760.7,2760.2,2.44595108]
[1724579768427,8.51664844,2760.7,2760.2,2.44595108]
[1724579768731,4.89452844,2760.5,2760.2,2.3735]
[1724579770742,1.27195844,2760.5,2760.2,2.3735]
[1724579771041,4.89428844,2760.7,2760.2,2.44595116]
[1724579771754,6.01877,2761.1,2760.1,7.24592]
[1724579771755,7.24362,2761.1,2760.4,2.3735]
[1724579771918,3.62177,2761.1,2760.6,2.3735]
[1724579772087,7.24361,2761.1,2760.6,2.3735]
[1724579772295,1.27195844,2761.0,2760.6,2.3735]
[1724579773193,1.27195844,2760.8,2760.6,2.3735]
[1724579773729,4.89412844,2760.8,2760.4,2.3735]
[1724579773933,1.27195844,2760.6,2760.4,2.3735]
[1724579776310,1.27195844,2760.8,2760.4,2.3735]
[1724579776511,1.27195844,2760.8,2760.4,3.335411]
[1724579778396,4.89411844,2760.8,2760.4,2.3735]
[1724579778626,1.27195844,2760.8,2760.4,2.3735]
[1724579779547,1.27195844,2760.6,2760.4,2.3735]
[1724579783401,1.27195844,2760.6,2760.1,2.2619]
[1724579783740,4.89437844,2760.6,2760.1,2.2619]
[1724579784036,4.89437844,2760.6,2760.1,5.88495]
[1724579791775,1.27195844,2760.6,2760.1,3.61179751]
[1724579791945,1.27195844,2760.6,2760.2,3.62292]
[1724579794600,1.27195844,2760.6,2760.3,2.2619]
[1724579796463,1.27195844,2760.7,2760.3,2.2619]
[1724579796678,1.27195844,2760.7,2760.3,2.62307975]
[1724579796877,1.27195844,2760.7,2760.4,3.62258]
[1724579799689,1.27195844,2760.7,2760.3,2.62307975]
[1724579802717,3.62214,2760.8,2760.3,6.24586975]
[1724579802875,3.62214,2760.8,2760.4,2.485]
[1724579803067,3.62214,2760.8,2760.4,3.16571753]
[1724579807834,3.62214,2760.8,2760.4,3.50389243]
[1724579808031,3.62214,2760.8,2760.4,3.16571753]
[1724579808407,8.73536676,2760.9,2760.5,6.10744]
[1724579808632,8.73536676,2760.9,2760.5,6.445622]
[1724579808849,8.73536676,2760.9,2760.6,0.90154716]
[1724579813233,1.27536676,2760.9,2760.6,0.90154716]
[1724579813445,4.89738676,2760.9,2760.6,0.90154716]
[1724579814050,1.27195844,2760.7,2760.4,0.68071753]
[1724579814218,3.62268,2760.4,2760.2,0.33821712]
[1724579814422,1.27195844,2760.3,2760.1,2.485]
[1724579815356,1.27195844,2760.3,2760.2,0.33827456]
[1724579816357,1.27195844,2760.3,2760.2,0.33828846]
[1724579816923,3.62294,2760.2,2759.9,0.33837329]
[1724579817122,1.27195844,2760.1,2760.0,0.33837329]
[1724579817354,1.27195844,2760.1,2759.9,0.33837589]
[1724579817531,1.27195844,2760.1,2759.9,0.90957793]
[1724579818324,1.27195844,2760.3,2760.0,2.8233618]
[1724579819520,1.27195844,2760.3,2760.0,2.485]
[1724579819724,1.27195844,2760.3,2760.0,2.82335053]
[1724579821235,1.27195844,2760.3,2760.0,2.485]
[1724579821450,1.27195844,2760.3,2760.0,3.29657776]
[1724579821650,1.27195844,2760.3,2760.0,3.63492829]
[1724579821868,1.27195844,2760.3,2760.0,3.29657776]
[1724579822535,1.27195844,2760.3,2760.0,6.91974776]
[1724579822933,1.27195844,2760.3,2760.0,7.25809829]
[1724579825226,1.27195844,2760.3,2760.0,6.91974776]
[1724579828335,1.27195844,2760.3,2760.1,4.71117799]
[1724579832985,1.27195844,2760.3,2760.0,3.63477339]
[1724579832986,1.27195844,2760.3,2760.0,6.10817]
[1724579835777,3.62245,2760.6,2760.0,6.1081]
[1724579836089,1.27195844,2760.3,2760.0,6.1081]
[1724579836595,1.27195844,2760.3,2760.0,9.7312]
[1724579836751,1.27195844,2760.3,2760.1,1.00694337]
[1724579839361,1.27195844,2760.3,2760.1,4.62997337]
[1724579844641,0.00340832,2760.6,2760.2,3.62292]
[1724579844783,0.00340832,2760.6,2760.4,3.62266]
[1724579844983,0.00340832,2760.6,2760.5,5.97523]
[1724579845721,0.00340832,2760.6,2760.5,21.81894542]
[1724579846087,0.00340832,2760.6,2760.5,20.67951666]
[1724579846285,0.00340832,2760.6,2760.5,22.19875501]
[1724579846488,0.00340832,2760.6,2760.5,22.41056278]
[1724579846783,0.00340832,2760.6,2760.5,25.26747585]
[1724579847383,0.00340832,2760.6,2760.5,25.25703991]
[1724579848440,0.00340832,2760.6,2760.5,25.25625751]
[1724579848786,0.00340832,2760.6,2760.5,23.60681953]
[1724579848987,0.00340832,2760.6,2760.5,24.87877797]
[1724579849429,0.1304665,2761.8,2760.7,3.62224]
[1724579849641,0.1304665,2761.8,2761.7,10.90995844]
[1724579849843,0.1304665,2761.8,2761.7,6.01705]
[1724579850207,0.1304665,2761.8,2761.7,10.90995844]
[1724579850511,0.1304665,2761.8,2761.7,9.638]
[1724579851046,0.1304665,2761.8,2761.2,2.3961]
[1724579851245,0.1304665,2761.8,2761.5,3.6212]
[1724579853169,0.1304665,2761.8,2761.7,3.62095]
[1724579853339,0.1304665,2761.8,2761.6,3.62106]
[1724579855080,0.1304665,2761.8,2761.6,3.62099]
[1724579855422,0.1304665,2761.8,2761.6,7.24199]
[1724579855618,0.1304665,2761.8,2761.7,0.724199]
[1724579855814,0.1304665,2761.8,2761.6,3.62099]
[1724579856063,0.1304665,2761.8,2761.6,7.24198]
[1724579856431,0.1304665,2761.8,2761.6,3.62099]
[1724579860547,0.1304665,2761.8,2761.4,3.6213]
[1724579861348,0.1304665,2761.8,2761.3,0.23961]
[1724579861552,3.7513065,2761.8,2761.3,0.23961]
[1724579863693,3.7513065,2761.8,2760.8,6.440084]
[1724579863694,3.62132,2761.5,2760.8,6.440084]
[1724579863860,3.62102,2761.7,2760.8,6.440084]
[1724579865073,3.62117,2761.6,2761.0,3.62185]
[1724579865952,3.62126,2761.5,2761.0,3.62185]
[1724579866152,3.62126,2761.5,2760.8,6.440084]
[1724579866348,5.32560719,2761.6,2760.5,2.4558]
[1724579866651,7.24423,2760.9,2760.2,3.62281]
[1724579866872,3.62211,2760.9,2760.2,3.62281]
[1724579867077,3.62211,2760.9,2760.2,7.24564]
[1724579867259,3.6221,2760.9,2760.2,3.62281]
[1724579867475,3.6221,2760.9,2760.2,4.347403]
[1724579867790,3.6221,2760.9,2760.3,3.62276]
[1724579868194,7.24422,2760.9,2760.3,3.62276]
[1724579868424,3.6221,2760.9,2760.3,3.62276]
[1724579869089,7.2442,2760.9,2760.3,3.62276]
[1724579869693,3.62214,2760.8,2760.3,3.62276]
[1724579870571,3.62214,2760.8,2760.2,0.724593]
[1724579871600,3.62214,2760.8,2760.2,4.347513]
[1724579872302,3.6218,2761.1,2760.4,2.3122]
[1724579872604,3.62163,2761.2,2760.6,3.6223]
[1724579872768,3.62175,2761.1,2760.6,3.6223]
[1724579873496,7.24358,2761.1,2760.6,0.955713]
[1724579873660,7.24358,2761.1,2760.4,5.93478]
[1724579873661,3.62175,2761.1,2760.4,5.93478]
[1724579873995,3.62192,2761.0,2760.4,5.93478]
[1724579874157,3.62212,2760.9,2760.4,2.3122]
[1724579874499,3.62227,2760.7,2760.4,2.3122]
[1724579874682,7.24423,2760.9,2760.4,2.3122]
[1724579874882,7.24424,2760.9,2760.4,2.905704]
[1724579875398,7.24421,2760.9,2760.4,2.905704]
[1724579875693,3.6221,2760.9,2760.4,2.905704]
[1724579881588,3.6221,2760.9,2760.4,6.528354]
[1724579882122,7.46,2761.4,2760.6,3.62232]
[1724579882321,11.08142,2761.4,2760.7,7.24436]
[1724579882479,3.62155,2761.3,2760.7,3.62217]
[1724579882820,3.62155,2761.3,2760.7,4.69367654]
[1724579883929,3.62155,2761.3,2760.7,8.31585654]
[1724579884218,3.62155,2761.3,2760.8,3.62209]
[1724579885224,3.62155,2761.3,2760.7,4.69367654]
[1724579887497,7.24312,2761.3,2760.7,4.69367654]
[1724579887802,3.62155,2761.3,2760.8,0.71489765]
[1724579889116,7.24315,2761.3,2760.8,0.71489765]
[1724579889280,3.62177,2761.1,2760.6,2.4553]
[1724579889478,7.2436,2761.1,2760.6,2.4553]
[1724579889889,3.62177,2761.1,2760.6,2.4553]
[1724579891499,3.62177,2761.1,2760.6,6.07769]
[1724579891705,3.62223,2760.8,2760.2,5.87979]
[1724579892016,2.3076,2760.9,2760.2,5.87979]
[1724579893194,3.62228,2760.7,2760.2,5.87979]
[1724579893395,3.62228,2760.7,2760.2,6.830062]
[1724579896921,9.55184,2760.9,2760.2,6.830062]
[1724579897432,3.62216,2760.8,2760.2,6.830062]
[1724579898396,4.89347551,2760.8,2760.2,6.830062]
[1724579898995,4.89347551,2760.8,2760.3,3.62278]
[1724579899322,4.89347551,2760.8,2760.3,4.6680682]
[1724579902244,4.89347551,2760.8,2760.3,4.6680682]
[1724579902900,3.62212,2760.9,2760.4,6.09482]
[1724579903645,3.62211,2760.9,2760.4,2.4722]
[1724579904198,1.27131551,2761.0,2760.4,6.09478]
[1724579904512,1.27131551,2761.1,2760.7,3.62219]
[1724579904715,7.46,2761.2,2760.6,2.4722]
[1724579905021,7.46,2761.2,2760.8,3.6221]
[1724579905198,8.51439551,2761.3,2760.8,3.6221]
[1724579905399,3.62162,2761.2,2760.7,3.62226]
[1724579905620,3.62162,2761.2,2760.7,1.04307468]
[1724579909248,1.27131551,2761.3,2760.7,4.66521468]
[1724579909249,4.89283551,2761.3,2760.7,4.66521468]
[1724579909630,4.89283551,2761.3,2760.8,2.4722]
[1724579910547,8.51440551,2761.3,2760.8,2.4722]
[1724579910856,4.89283551,2761.3,2760.9,0.71374147]
[1724579912233,4.93762881,2761.3,2760.9,0.71374147]
[1724579912627,1.31610881,2761.3,2760.9,0.71374147]
[1724579914029,1.31610881,2761.3,2761.0,2.4722]
[1724579918089,0.0447933,2761.3,2761.0,6.84729337]
[1724579918379,0.0447933,2761.3,2761.1,2.4722]
[1724579921638,0.0447933,2761.3,2761.2,3.62161]
[1724579921839,0.0447933,2761.3,2761.2,5.95513387]
[1724579922089,0.0447933,2761.3,2761.2,9.57674387]
[1724579922795,0.0447933,2761.3,2761.2,10.72327215]
[1724579922943,0.0447933,2761.3,2761.2,7.02923828]
[1724579923782,0.0447933,2761.3,2761.2,1.14652828]
[1724579923987,1.31610881,2761.3,2761.0,2.2611]
[1724579925748,1.31610881,2761.3,2761.0,5.88297]
[1724579926746,0.0447933,2761.3,2761.0,5.88297]
[1724579928795,1.31610881,2761.3,2761.0,2.2611]
[1724579928952,1.27131551,2761.1,2760.8,5.88312]
[1724579929163,1.27131551,2761.1,2760.9,0.362202]
[1724579929370,1.31610881,2761.1,2760.9,0.362202]
[1724579931469,0.0447933,2761.1,2760.9,0.362202]
[1724579931668,0.0447933,2761.1,2761.0,0.6245322]
[1724579933387,0.0447933,2761.1,2760.9,0.362202]
[1724579934814,0.0447933,2761.1,2760.9,3.984192]
[1724579935182,1.31610881,2761.1,2760.5,3.01478638]
[1724579935494,1.31610881,2761.1,2760.5,2.2611]
[1724579935495,4.93792881,2761.1,2760.5,2.2611]
[1724579936083,4.93792881,2761.1,2760.6,3.62239]
[1724579939632,4.93792881,2761.1,2760.5,2.2611]
[1724579939633,4.89333551,2760.9,2760.5,2.2611]
[1724579939793,1.27131551,2760.9,2760.5,2.2611]
[1724579940367,1.27131551,2760.9,2760.5,3.40062119]
[1724579940572,1.31610881,2760.9,2760.5,3.40062119]
[1724579941013,0.0447933,2760.9,2760.5,7.02315119]
[1724579941222,1.31610881,2760.9,2760.5,7.02315119]
[1724579947334,1.31610881,2760.9,2760.6,0.89121361]
[1724579947558,0.0447933,2760.9,2760.6,0.89121361]
[1724579948743,0.0447933,2760.9,2760.6,4.51360361]
[1724579949736,0.0447933,2760.9,2760.8,3.62213]
[1724579951438,0.0447933,2760.9,2760.6,4.51351361]
[1724579951647,0.0447933,2760.9,2760.7,0.67746136]
[1724579952839,0.0447933,2760.9,2760.7,4.29971136]
[1724579954636,0.0447933,2760.9,2760.7,0.67746136]
[1724579959549,0.0447933,2760.9,2760.6,0.89121361]
[1724579959748,0.0447933,2760.9,2760.5,2.2611]
[1724579959944,3.6667933,2760.9,2760.5,2.2611]
[1724579960148,7.2888833,2760.9,2760.5,2.2611]
[1724579960374,3.6667933,2760.9,2760.5,2.2611]
[1724579962195,0.0447933,2760.9,2760.5,2.2611]
[1724579962409,0.0447933,2760.9,2760.6,0.950628]
[1724579967537,0.0447933,2760.9,2760.6,4.572998]
[1724579976411,0.0447933,2760.9,2760.6,6.46192427]
[1724579978057,0.0447933,2760.9,2760.6,4.572998]
[1724579978261,0.0447933,2760.9,2760.6,6.46193061]
[1724579978898,0.0447933,2760.9,2760.7,1.88893261]
[1724579979463,0.0447933,2760.9,2760.6,6.46194508]
[1724579980310,0.0447933,2760.9,2760.7,1.88894708]
[1724579980795,0.0447933,2760.9,2760.7,1.88893769]
[1724579981301,0.0447933,2760.9,2760.7,1.88897933]
[1724579981497,0.0447933,2760.9,2760.6,4.572998]
[1724579982083,0.0447933,2760.9,2760.7,1.88898069]
[1724579982278,0.0447933,2760.9,2760.6,4.572998]
[1724579982802,0.0447933,2760.9,2760.7,1.88898133]
[1724579985673,0.0447933,2760.9,2760.7,1.88897018]
[1724579990602,0.0447933,2760.9,2760.6,4.37605638]
[1724579990785,0.0447933,2760.9,2760.7,2.60676837]
[1724579992009,0.0447933,2760.9,2760.7,0.71780088]
[1724579993225,0.0447933,2760.9,2760.7,2.60676771]
[1724579995417,0.0447933,2760.9,2760.7,1.88896683]
[1724579995627,0.0447933,2760.9,2760.5,3.55562411]
[1724579995788,0.0447933,2760.9,2760.6,1.8890234]
[1724579995990,0.0447933,2760.9,2760.5,7.17813411]
[1724579996226,3.6668633,2760.9,2760.6,1.88902912]
[1724579996385,3.6668633,2760.9,2760.5,1.88913928]
[1724579996585,3.6668633,2760.9,2760.4,4.91717411]
[1724579996804,3.6668633,2760.9,2760.5,1.88915354]
[1724579997628,3.6668633,2760.9,2760.5,1.88915475]
[1724579998012,3.6668633,2760.9,2760.3,1.29452411]
[1724579998013,3.6224,2760.6,2760.3,1.29452411]
[1724579998222,6.00871,2760.5,2760.1,1.88937315]
[1724579998389,6.00871,2760.5,2760.1,1.88939825]
[1724579998596,6.00871,2760.5,2760.0,1.88939825]
[1724579998812,2.3861,2760.5,2760.0,3.62317]
[1724579999011,2.4308933,2760.5,2760.0,3.62317]
[1724579999225,2.4308933,2760.5,2760.0,5.51256825]
[1724579999430,2.4308933,2760.5,2759.9,0.75368638]
[1724579999431,6.0535033,2760.5,2759.9,2.64308463]
[1724579999637,3.6227,2760.4,2759.8,6.26640463]
[1724579999927,3.6227,2760.4,2759.8,3.62332]
[1724580000133,2.4107,2760.3,2759.8,3.62332]
[1724580000588,2.4107,2760.1,2759.6,1.88954978]
[1724580000703,6.03383,2760.1,2759.5,0.56788187]
[1724580000908,6.03383,2760.1,2759.5,5.1084496]
[1724580000909,2.4107,2760.1,2759.5,5.1084496]
[1724580001126,2.4554933,2760.1,2759.5,5.1084496]
[1724580001417,2.4054933,2760.1,2759.6,3.62367]
[1724580001603,2.4054933,2760.1,2759.6,3.62362]
[1724580001833,0.0447933,2760.1,2759.6,5.95602]
[1724580001997,0.0447933,2760.1,2759.7,3.62357]
[1724580002326,0.0447933,2760.1,2759.9,2.3324]
[1724580003143,0.0447933,2760.1,2759.8,3.62337]
[1724580006710,0.0447933,2760.1,2759.7,3.01967777]
[1724580006917,0.0447933,2760.1,2759.7,0.68727777]
[1724580009006,0.0447933,2760.1,2759.8,0.79345278]
[1724580009659,0.0447933,2760.1,2759.6,3.62362]
[1724580010286,0.0447933,2760.1,2759.7,2.3324]
[1724580012311,0.0447933,2760.1,2759.8,0.07246029]
[1724580012612,0.0447933,2760.1,2759.7,5.95597]
[1724580012613,0.0447933,2760.1,2760.0,5.95558]
[1724580013405,0.0447933,2760.1,2760.0,9.57876]
[1724580013607,0.0447933,2760.1,2760.0,5.95558]
[1724580013904,0.0447933,2760.1,2760.0,7.04382464]
[1724580015781,0.0447933,2760.1,2760.0,3.42064464]
[1724580015963,0.0447933,2760.1,2760.0,7.04382464]
[1724580017521,0.0447933,2760.1,2760.0,1.08824464]
[1724580017663,0.0447933,2760.1,2759.8,5.95582]
[1724580018508,0.0447933,2760.1,2759.9,3.62331]
[1724580020395,0.0447933,2760.1,2760.0,3.62318]
[1724580020562,0.0447933,2760.1,2759.9,3.62331]
[1724580025268,0.0447933,2760.1,2759.9,3.62322]
[1724580025609,0.0447933,2760.1,2760.0,0.362322]
[1724580026478,0.0447933,2760.1,2760.0,3.985502]
[1724580028545,0.0447933,2760.1,2760.0,9.909282]
[1724580028834,0.0447933,2760.1,2760.0,10.459282]
[1724580029619,0.0447933,2760.1,2760.0,11.21296838]
[1724580032217,0.0447933,2760.1,2760.0,10.459282]
[1724580032463,0.0447933,2760.1,2760.0,12.34838403]
[1724580032839,0.0447933,2760.1,2760.0,10.459282]
[1724580038530,0.0447933,2760.1,2760.0,12.34838403]
[1724580038986,0.0447933,2760.1,2760.0,10.459282]
[1724580039281,0.0447933,2760.1,2760.0,12.34844227]
[1724580039584,0.0447933,2760.1,2760.0,10.459282]
[1724580044688,0.0447933,2760.1,2760.0,11.21296838]
[1724580045146,0.0447933,2760.1,2760.0,13.1021527]
[1724580045537,0.0447933,2760.1,2760.0,11.21296838]
[1724580048489,0.0447933,2760.1,2760.0,13.1021527]
[1724580048993,0.0447933,2760.1,2760.0,13.10206999]
[1724580049677,0.0447933,2760.1,2760.0,8.92888999]
[1724580049862,0.0447933,2760.1,2760.0,6.286102]
[1724580050061,0.0447933,2760.1,2760.0,7.03978838]
[1724580050461,0.0447933,2760.1,2760.0,1.11600838]
[1724580050668,0.0447933,2760.1,2759.9,2.64278799]
[1724580050862,0.0447933,2760.1,2759.9,0.75368638]
[1724580052783,0.0447933,2760.1,2759.9,2.64278799]
[1724580053090,0.0447933,2760.1,2759.9,0.75368638]
[1724580053263,0.0447933,2760.1,2759.9,4.37699638]
[1724580053468,0.0447933,2760.1,2759.9,7.36809475]
[1724580053858,0.0447933,2760.1,2759.9,7.36831847]
[1724580054666,0.0447933,2760.1,2760.0,3.62318]
[1724580054866,0.0447933,2760.1,2760.0,12.14667171]
[1724580055290,0.0447933,2760.1,2760.0,12.5235149]
[1724580055611,0.0447933,2760.1,2760.0,14.39914434]
[1724580057611,0.0447933,2760.1,2760.0,18.39916753]
[1724580057818,0.0447933,2760.1,2760.0,25.47432521]
[1724580058111,0.0447933,2760.1,2760.0,28.85236673]
[1724580058609,0.0447933,2760.1,2760.0,28.85065297]
[1724580058820,0.0447933,2760.1,2760.0,32.66865297]
[1724580059159,0.0447933,2760.1,2760.0,30.40151133]
[1724580059357,0.0447933,2760.1,2760.0,32.66762305]
[1724580059552,0.0447933,2760.1,2760.0,30.40151133]
[1724580060760,0.0447933,2760.1,2760.0,32.66711692]
[1724580062054,0.0447933,2760.1,2760.0,28.84911692]
[1724580062489,0.0447933,2760.1,2760.0,29.72759029]
[1724580063095,0.0447933,2760.1,2760.0,23.8388047]
[1724580063259,0.0447933,2760.1,2760.0,25.72630087]
[1724580063456,0.0447933,2760.1,2760.0,21.55331868]
[1724580063658,0.0447933,2760.1,2760.0,22.65735581]
[1724580063870,0.0447933,2760.1,2760.0,25.17649868]
[1724580064317,0.0447933,2760.1,2760.0,24.29802531]
[1724580064617,0.0447933,2760.1,2760.0,25.17674536]
[1724580064755,0.0447933,2760.1,2760.0,25.72674536]
[1724580065372,0.0447933,2760.1,2760.0,24.84802531]
[1724580065577,0.0447933,2760.1,2760.0,25.72671013]
[1724580067454,0.0447933,2760.1,2760.0,24.84802531]
[1724580067653,0.0447933,2760.1,2760.0,28.47120531]
[1724580067856,0.0447933,2760.1,2760.0,29.34950494]
[1724580068325,0.0447933,2760.1,2760.0,24.84802531]
[1724580068604,0.0447933,2760.1,2760.0,25.18433874]
[1724580069114,0.0447933,2760.1,2760.0,25.7248017]
[1724580070011,0.0447933,2760.1,2760.0,23.83868687]
[1724580070362,0.0447933,2760.1,2760.0,25.34732591]
[1724580070762,0.0447933,2760.1,2760.0,20.0899396]
[1724580071002,0.0447933,2760.1,2760.0,10.22750122]
[1724580071178,0.0447933,2760.1,2760.0,7.24636]
[1724580074579,0.0447933,2760.1,2760.0,3.62318]
[1724580079556,2.3914,2760.0,2759.8,2.98130446]
[1724580079718,0.24361933,2759.9,2759.6,0.33805238]
[1724580079915,2.3914,2760.0,2759.5,4.191662]
[1724580080151,2.3914,2760.0,2759.7,3.62351]
[1724580080316,2.3914,2760.0,2759.7,7.24702]
[1724580080532,2.3914,2760.0,2759.7,3.62351]
[1724580080843,2.3914,2760.0,2759.8,3.62342]
[1724580081212,0.0447933,2760.1,2760.0,3.62318]
[1724580084169,0.0447933,2760.1,2759.8,3.62333]
[1724580084317,0.0447933,2760.1,2759.7,3.6235]
[1724580084935,0.0447933,2760.1,2759.9,3.6233]
[1724580090028,0.0447933,2760.1,2759.8,3.62344]
[1724580090229,0.0447933,2760.1,2759.8,4.25587056]
[1724580090640,0.0447933,2760.1,2759.8,0.63243056]
[1724580090846,0.0447933,2760.1,2759.7,7.24695]
[1724580091241,0.0447933,2760.1,2759.7,3.62346]
[1724580091493,0.0447933,2760.1,2759.6,0.33800558]
[1724580091633,0.0447933,2760.1,2759.6,3.62368]
[1724580091634,2.4974,2760.0,2759.6,3.62368]
[1724580091947,2.4974,2760.0,2759.6,4.62798976]
[1724580093063,2.4974,2760.0,2759.6,3.62368]
[1724580093744,2.4974,2760.0,2759.6,7.24728]
[1724580093951,0.0447933,2760.1,2759.6,3.6236]
[1724580094159,0.0447933,2760.1,2759.6,7.24722]
[1724580094335,0.0447933,2760.1,2759.6,3.6236]
[1724580096857,0.0447933,2760.1,2759.7,3.62357]
[1724580099482,0.0447933,2760.1,2759.6,7.24723]
[1724580100272,0.0447933,2760.1,2759.6,3.6236]
[1724580100471,4.28440663,2760.1,2759.6,3.6236]
[1724580100677,2.4827,2760.0,2759.6,3.6236]
[1724580106185,2.4827,2760.0,2759.7,3.62348]
[1724580106519,2.4827,2760.0,2759.6,3.6236]
[1724580106520,0.0447933,2760.1,2759.8,3.62343]
[1724580109486,0.0447933,2760.1,2759.6,3.6236]
[1724580110292,0.0447933,2760.1,2759.7,3.62356]
[1724580110721,0.65983463,2760.1,2759.5,1.88953088]
[1724580110883,0.65983463,2760.1,2759.5,3.62381]
[1724580111088,2.4827,2760.0,2759.5,3.62381]
[1724580112333,6.10591,2760.0,2759.5,3.62381]
[1724580112946,6.10591,2760.0,2759.6,3.62371]
[1724580112947,2.4827,2760.0,2759.6,3.62371]
[1724580115999,6.10589,2760.0,2759.5,0.75456282]
[1724580116159,6.10589,2760.0,2759.5,3.62379]
[1724580116364,2.4827,2760.0,2759.6,3.62366]
[1724580118176,0.0447933,2760.1,2759.7,3.62349]
[1724580120004,0.0447933,2760.1,2759.8,3.62344]
[1724580121213,0.0447933,2760.1,2760.0,3.62318]
[1724580122707,0.0447933,2760.1,2759.8,7.24677]
[1724580123422,0.0447933,2760.1,2759.8,9.13624748]
[1724580124104,0.0447933,2760.1,2759.9,3.62323]
[1724580125467,0.0447933,2760.1,2759.9,1.88947748]
[1724580127709,0.0447933,2760.1,2759.8,4.37789282]
[1724580127930,0.0447933,2760.1,2759.9,1.88946495]
[1724580131927,5.9904233,2760.1,2759.8,1.88946495]
[1724580132092,3.62329,2760.0,2759.8,1.88946495]
[1724580132515,3.62331,2759.9,2759.6,2.64402777]
[1724580132722,3.62331,2759.9,2759.7,1.88968291]
[1724580133107,3.62331,2759.9,2759.5,2.64424573]
[1724580133346,3.62331,2759.9,2759.6,1.88968291]
[1724580133645,3.62331,2759.9,2759.7,1.88968291]
[1724580133862,3.62331,2759.9,2759.6,1.88968291]
[1724580134044,3.62331,2759.9,2759.7,1.88968291]
[1724580134213,3.62318,2760.0,2759.6,1.88968291]
[1724580134408,10.21261563,2760.1,2759.7,1.88968291]
[1724580134608,1.02126156,2760.0,2759.7,1.88968291]
[1724580134809,6.58946563,2760.1,2759.7,1.88968291]
[1724580136044,6.58946563,2760.1,2759.7,1.88829503]
[1724580136346,10.21261563,2760.1,2759.7,1.88829503]
[1724580136644,10.21260563,2760.1,2759.7,1.88829503]
[1724580136835,6.58946563,2760.1,2759.7,1.88829503]
[1724580137152,0.65894656,2760.0,2759.7,1.88829503]
[1724580137641,0.65894656,2760.0,2759.6,0.75456282]
[1724580139157,5.94596,2759.8,2759.6,0.75456282]
[1724580139311,2.3225,2759.8,2759.5,0.75456282]
[1724580141261,2.3225,2759.8,2759.4,7.94648531]
[1724580141479,2.3225,2759.8,2759.4,11.57038531]
[1724580141779,2.3906,2759.4,2759.1,0.75456282]
[1724580141980,2.3906,2759.4,2759.0,4.32263411]
[1724580142131,2.3906,2759.4,2759.0,3.56807129]
[1724580142326,2.3906,2759.4,2759.0,3.0]
[1724580142842,6.01458,2759.4,2759.0,3.0]
[1724580143135,6.978419,2759.4,2759.0,3.0]
[1724580146181,3.62437,2759.1,2759.0,3.0]
[1724580146466,3.62426,2759.2,2759.0,3.0]
[1724580146677,4.3221299,2759.2,2759.0,3.0]
[1724580147188,3.62437,2759.1,2759.0,3.0]
[1724580149568,6.01497,2759.1,2759.0,3.0]
[1724580151365,9.63934,2759.1,2759.0,3.0]
[1724580152468,7.24874,2759.1,2759.0,3.0]
[1724580152700,7.9293311,2759.1,2759.0,3.0]
[1724580153858,4.3049611,2759.1,2759.0,3.0]
[1724580154200,3.62437,2759.1,2759.0,3.0]
[1724580159556,3.62437,2759.1,2759.0,5.373]
[1724580160876,3.62437,2759.1,2759.0,3.0]
[1724580164109,7.24874,2759.1,2759.0,3.0]
[1724580177675,3.62437,2759.1,2759.0,3.0]
[1724580177829,8.214052,2759.1,2759.0,3.0]
[1724580178019,4.589682,2759.1,2759.0,3.0]
[1724580178220,8.214052,2759.1,2759.0,3.0]
[1724580178425,4.589682,2759.1,2759.0,3.0]
[1724580178878,8.214052,2759.1,2759.0,3.0]
[1724580179787,4.589682,2759.1,2759.0,3.0]
[1724580180228,8.214052,2759.1,2759.0,3.0]
[1724580181829,4.589682,2759.1,2759.0,3.0]
[1724580182032,8.214052,2759.1,2759.0,3.0]
[1724580182240,7.24874,2759.1,2759.0,3.0]
[1724580184937,3.62437,2759.1,2759.0,3.0]
[1724580185575,7.24874,2759.1,2759.0,3.0]
[1724580191156,3.62437,2759.1,2759.0,3.0]
[1724580196280,7.24874,2759.1,2759.0,3.0]
[1724580196708,3.62437,2759.1,2759.0,3.0]
[1724580197083,7.24874,2759.1,2759.0,3.0]
[1724580197305,7.973614,2759.1,2759.0,3.0]
[1724580198874,4.349244,2759.1,2759.0,3.0]
[1724580199095,7.973614,2759.1,2759.0,3.0]
[1724580199769,7.973614,2759.1,2759.0,2.995]
[1724580201032,3.62437,2759.1,2759.0,2.995]
[1724580201197,7.46,2759.6,2759.1,2.3326]
[1724580201394,11.08374,2759.6,2759.1,2.3326]
[1724580201596,3.62384,2759.5,2759.1,2.3326]
[1724580202930,3.62398,2759.4,2759.1,2.3326]
[1724580204618,7.24806,2759.4,2759.1,2.3326]
[1724580204820,3.62412,2759.3,2759.1,2.3326]
[1724580204998,3.62398,2759.4,2759.1,2.3326]
[1724580205347,3.62423,2759.2,2759.1,2.3326]
[1724580205639,7.24846,2759.2,2759.1,2.3326]
[1724580207847,3.62423,2759.2,2759.1,2.3326]
[1724580208023,3.62335,2759.9,2759.1,2.3326]
[1724580208226,0.0447933,2760.1,2759.8,3.62342]
[1724580208456,0.0447933,2760.1,2759.9,2.3326]
[1724580220759,3.6679733,2760.1,2759.9,2.3326]
[1724580227714,3.6679433,2760.1,2759.9,2.3326]
[1724580228146,7.2910833,2760.1,2759.9,2.3326]
[1724580228355,3.6679333,2760.1,2759.9,2.3326]
[1724580234111,7.2911033,2760.1,2759.9,2.3326]
[1724580234268,3.6679333,2760.1,2759.9,2.3326]
[1724580235338,4.40346113,2760.1,2759.4,2.3142]
[1724580235553,3.6679333,2760.1,2759.4,2.3142]
[1724580235724,3.62336,2759.9,2759.4,2.3142]
[1724580237423,3.62336,2759.9,2759.4,5.93817]
[1724580238551,7.2910433,2760.1,2759.4,5.93817]
[1724580238873,3.62319,2760.0,2759.4,5.93817]
[1724580240367,3.6679033,2760.1,2759.6,2.2866]
[1724580240724,0.0447933,2760.1,2759.6,2.2866]
[1724580240976,0.0447933,2760.1,2759.8,2.2866]
[1724580241193,0.0447933,2760.1,2759.8,3.62341]
[1724580241323,0.0447933,2760.1,2759.9,2.2866]
[1724580250643,0.0447933,2760.1,2759.9,5.9099]